bitfinex-derivatives/quotes_BTCF0:USTF0_20241020
["timestamp","ask_amount","ask_price","bid_price","bid_amount"]
[1729463365809,0.868674,69125.0,69124.0,0.001]
[1729463366010,0.434675,69125.0,69112.0,0.16416]
[1729463366213,0.3608,69115.0,69112.0,0.16416]
[1729463366715,0.3608,69115.0,69114.0,0.057884]
[1729463367312,0.057876,69123.0,69112.0,0.001]
[1729463367518,0.057876,69123.0,69117.0,0.057881]
[1729463367519,0.418676,69123.0,69117.0,0.057881]
[1729463367717,0.779476,69123.0,69117.0,0.057881]
[1729463368524,0.785476,69123.0,69117.0,0.058881]
[1729463369022,0.7276,69123.0,69117.0,0.001]
[1729463369226,0.057878,69121.0,69117.0,0.001]
[1729463369614,0.057879,69120.0,69117.0,0.001]
[1729463369824,0.0377,69119.0,69117.0,0.002]
[1729463370223,0.0377,69119.0,69099.0,0.057896]
[1729463370224,0.057889,69108.0,69099.0,0.057896]
[1729463370522,0.3608,69100.0,69096.0,0.057898]
[1729463370710,0.3608,69100.0,69090.0,0.07263]
[1729463370711,0.3608,69100.0,69091.0,0.057903]
[1729463370912,0.3608,69092.0,69091.0,0.057903]
[1729463372417,0.3618,69092.0,69091.0,0.071903]
[1729463373133,0.3628,69092.0,69091.0,0.085903]
[1729463373919,0.002,69092.0,69091.0,0.085903]
[1729463374215,0.002,69092.0,69091.0,0.880903]
[1729463374416,0.3608,69106.0,69104.0,0.057892]
[1729463374817,0.43412,69105.0,69099.0,0.057896]
[1729463375124,0.3608,69100.0,69099.0,0.057896]
[1729463375812,0.001,69106.0,69104.0,0.011]
[1729463376012,0.001,69106.0,69105.0,0.057891]
[1729463376526,0.3608,69107.0,69105.0,0.057891]
[1729463376731,0.3608,69107.0,69106.0,0.05789]
[1729463377317,0.2409,69148.0,69106.0,0.05789]
[1729463377318,0.36297106,69120.0,69112.0,0.057885]
[1729463377631,0.00217106,69120.0,69119.0,0.057879]
[1729463377828,0.36297106,69120.0,69111.0,0.057886]
[1729463378139,0.00092,69169.0,69127.0,0.3608]
[1729463378329,2.6969,69253.0,69127.0,0.3608]
[1729463378330,0.4371,69221.0,69170.0,0.1448]
[1729463378519,0.4371,69221.0,69187.0,0.057822]
[1729463378520,0.057808,69205.0,69187.0,0.057822]
[1729463378720,0.057822,69188.0,69182.0,0.3608]
[1729463379019,0.0371,69187.0,69175.0,0.3608]
[1729463379222,0.057824,69185.0,69175.0,0.3608]
[1729463379425,0.1156,69187.0,69175.0,0.3608]
[1729463379426,0.057827,69182.0,69175.0,0.3608]
[1729463380329,0.173423,69187.0,69175.0,0.3608]
[1729463380732,0.009,69182.0,69175.0,0.3618]
[1729463381522,0.009,69182.0,69181.0,0.3608]
[1729463382528,0.1156,69187.0,69181.0,0.3608]
[1729463383240,0.1156,69187.0,69181.0,0.3618]
[1729463383429,0.1156,69187.0,69181.0,0.3628]
[1729463383624,0.1156,69187.0,69184.0,0.3608]
[1729463384323,0.0371,69187.0,69185.0,0.057824]
[1729463384826,0.057817,69194.0,69184.0,0.418625]
[1729463385024,0.057817,69194.0,69192.0,0.3608]
[1729463385223,0.057812,69200.0,69192.0,0.3608]
[1729463385423,0.057814,69198.0,69192.0,0.3608]
[1729463385732,0.0389,69201.0,69192.0,0.7216]
[1729463385936,0.0389,69201.0,69200.0,0.3608]
[1729463386231,0.057813,69199.0,69192.0,0.36172]
[1729463386437,0.057813,69199.0,69192.0,0.3608]
[1729463386623,0.002,69198.0,69192.0,0.3618]
[1729463387036,0.002,69198.0,69192.0,0.3628]
[1729463387238,0.003,69200.0,69192.0,0.3618]
[1729463387435,0.057817,69194.0,69192.0,0.3028]
[1729463387635,0.057823,69187.0,69186.0,0.3608]
[1729463387938,0.057821,69190.0,69181.0,0.3608]
[1729463388135,0.3608,69197.0,69171.0,0.3608]
[1729463388136,0.057823,69187.0,69184.0,0.3608]
[1729463389039,0.057823,69187.0,69181.0,0.001]
[1729463389536,0.057823,69187.0,69184.0,0.001]
[1729463389537,0.060823,69187.0,69184.0,0.001]
[1729463389738,0.006,69187.0,69184.0,0.002]
[1729463389938,0.057824,69185.0,69184.0,0.002]
[1729463390330,0.057824,69185.0,69177.0,0.3608]
[1729463390331,0.79444,69185.0,69177.0,0.3608]
[1729463390633,0.057829,69179.0,69177.0,0.3608]
[1729463391031,0.006,69187.0,69182.0,0.057827]
[1729463391229,0.008,69187.0,69186.0,0.3608]
[1729463391527,0.008,69187.0,69186.0,0.418623]
[1729463391726,0.3608,69207.0,69186.0,1.452223]
[1729463391931,0.00076,69216.0,69202.0,0.3608]
[1729463392229,0.057803,69211.0,69202.0,0.3608]
[1729463392429,0.057795,69220.0,69202.0,0.3608]
[1729463392630,0.057809,69203.0,69202.0,0.3608]
[1729463393031,0.057809,69203.0,69188.0,0.3608]
[1729463393032,0.43352,69203.0,69188.0,0.3608]
[1729463393427,0.057816,69195.0,69188.0,0.3608]
[1729463393633,0.00140423,69192.0,69188.0,0.3608]
[1729463393831,0.05782,69190.0,69188.0,0.3608]
[1729463394035,0.057821,69189.0,69188.0,0.3608]
[1729463394746,0.05922523,69189.0,69188.0,0.3608]
[1729463395445,0.06222523,69189.0,69188.0,0.3618]
[1729463396341,0.06422523,69189.0,69188.0,0.3608]
[1729463397545,0.49782523,69189.0,69188.0,0.3608]
[1729463397746,0.49782523,69189.0,69141.0,0.00084]
[1729463397747,0.05783,69178.0,69174.0,0.3608]
[1729463398833,0.00140423,69176.0,69174.0,0.3698]
[1729463399035,0.00140423,69176.0,69174.0,0.3778]
[1729463399753,0.00140423,69175.0,69174.0,0.3778]
[1729463399947,0.00140423,69175.0,69174.0,0.3798]
[1729463400639,0.05923723,69175.0,69174.0,0.3798]
[1729463400840,0.00140423,69175.0,69174.0,0.3798]
[1729463401034,0.00140423,69175.0,69174.0,0.437633]
[1729463401340,0.00216856,69208.0,69187.0,0.3608]
[1729463401645,0.00216856,69208.0,69174.0,1.05368]
[1729463401646,0.00216856,69208.0,69207.0,0.418606]
[1729463402046,0.00357182,69208.0,69207.0,0.418606]
[1729463402632,0.00557182,69208.0,69207.0,0.418606]
[1729463402837,0.00557182,69208.0,69207.0,0.3618]
[1729463402838,0.00757182,69208.0,69207.0,0.3618]
[1729463404246,0.00557182,69208.0,69207.0,0.3618]
[1729463404453,0.00557182,69208.0,69207.0,0.3628]
[1729463404454,0.00757182,69208.0,69207.0,0.3628]
[1729463406536,0.00757182,69208.0,69207.0,0.420606]
[1729463407236,0.0399,69226.0,69218.0,0.057796]
[1729463407435,0.3283,69246.0,69207.0,0.420606]
[1729463407436,0.00216716,69242.0,69224.0,0.3608]
[1729463407640,0.00216716,69242.0,69232.0,0.3608]
[1729463407835,0.057784,69233.0,69232.0,0.3608]
[1729463408238,0.00216716,69242.0,69232.0,0.3608]
[1729463408436,0.00216716,69242.0,69241.0,0.3608]
[1729463408437,0.01928397,69242.0,69241.0,0.3608]
[1729463408642,0.00216716,69242.0,69241.0,0.3608]
[1729463408848,0.00140301,69242.0,69241.0,0.3608]
[1729463409047,0.03498297,69252.0,69241.0,0.3608]
[1729463409048,0.057772,69248.0,69241.0,0.3608]
[1729463409237,0.057772,69248.0,69247.0,0.3608]
[1729463409441,0.057777,69242.0,69241.0,0.3608]
[1729463409636,0.057772,69248.0,69233.0,0.3608]
[1729463409840,0.057783,69234.0,69233.0,0.3608]
[1729463410049,0.0021669,69250.0,69233.0,0.3608]
[1729463410240,0.057779,69239.0,69233.0,0.3608]
[1729463410438,0.0021669,69250.0,69232.0,0.002]
[1729463410642,0.0373,69249.0,69241.0,0.001]
[1729463410839,0.0373,69249.0,69241.0,0.002]
[1729463410840,0.057776,69243.0,69241.0,0.002]
[1729463411044,0.0373,69249.0,69241.0,0.002]
[1729463411242,0.057776,69243.0,69241.0,0.001]
[1729463411442,0.057777,69242.0,69241.0,0.001]
[1729463411651,0.0373,69249.0,69238.0,0.3608]
[1729463411652,0.057776,69243.0,69238.0,0.3608]
[1729463411850,0.0373,69249.0,69238.0,0.3608]
[1729463412043,0.0373,69249.0,69241.0,0.001]
[1729463412044,0.057776,69243.0,69241.0,0.001]
[1729463412348,0.0373,69249.0,69238.0,0.3608]
[1729463412349,0.057777,69242.0,69238.0,0.3608]
[1729463412645,0.057777,69242.0,69241.0,0.002]
[1729463413253,0.057777,69242.0,69201.0,0.0341]
[1729463413254,1.03328,69242.0,69208.0,0.3608]
[1729463413441,0.057796,69219.0,69204.0,0.3608]
[1729463413644,0.057807,69205.0,69204.0,0.3608]
[1729463413842,0.057807,69205.0,69191.0,0.3608]
[1729463413843,0.057815,69197.0,69191.0,0.36164]
[1729463414060,0.3608,69206.0,69183.0,0.3608]
[1729463414349,0.3608,69206.0,69189.0,0.3608]
[1729463414545,0.057816,69195.0,69189.0,0.3608]
[1729463414944,0.3608,69206.0,69193.0,0.001]
[1729463415145,0.057812,69200.0,69197.0,0.3608]
[1729463415444,0.3608,69206.0,69197.0,0.3608]
[1729463415445,0.057813,69199.0,69197.0,0.3608]
[1729463415643,0.3608,69206.0,69193.0,0.001]
[1729463415644,0.057814,69197.0,69193.0,0.001]
[1729463415948,0.057814,69197.0,69189.0,0.3618]
[1729463416147,0.057814,69197.0,69195.0,0.3608]
[1729463416741,0.057815,69196.0,69195.0,0.3608]
[1729463417348,0.057815,69196.0,69182.0,0.3608]
[1729463417349,0.057815,69196.0,69191.0,0.3608]
[1729463417646,0.009,69199.0,69191.0,0.3608]
[1729463417853,0.009,69199.0,69198.0,0.3608]
[1729463418055,0.009,69199.0,69198.0,0.418613]
[1729463418553,0.0578,69215.0,69198.0,0.79432]
[1729463418761,0.00216828,69219.0,69214.0,0.3608]
[1729463419055,0.00216828,69219.0,69214.0,0.4186]
[1729463419250,0.00216828,69219.0,69215.0,0.057798]
[1729463419557,0.00216828,69219.0,69198.0,0.058813]
[1729463419558,0.3608,69216.0,69200.0,0.3608]
[1729463419954,0.057808,69205.0,69198.0,0.001]
[1729463420149,0.00216828,69219.0,69204.0,0.3608]
[1729463420349,0.00216828,69219.0,69215.0,0.3608]
[1729463420549,0.00216828,69219.0,69218.0,0.057797]
[1729463421656,0.00916828,69219.0,69215.0,0.3618]
[1729463422051,0.01416828,69219.0,69215.0,0.3618]
[1729463422257,0.01416828,69219.0,69218.0,0.057797]
[1729463422763,0.01416828,69219.0,69218.0,0.491197]
[1729463423354,0.00716828,69219.0,69218.0,0.491197]
[1729463423662,0.00816828,69219.0,69218.0,0.491197]
[1729463424061,0.057778,69240.0,69218.0,1.091197]
[1729463424255,0.057778,69240.0,69235.0,0.3608]
[1729463425458,0.057779,69239.0,69235.0,0.001]
[1729463426050,0.057782,69236.0,69235.0,0.001]
[1729463426263,0.009,69240.0,69221.0,0.3608]
[1729463426264,0.0411,69239.0,69221.0,0.3608]
[1729463426463,0.057784,69234.0,69223.0,0.057792]
[1729463426658,0.0411,69239.0,69223.0,0.057792]
[1729463426659,0.057783,69235.0,69223.0,0.057792]
[1729463426853,0.03539071,69234.0,69223.0,0.057792]
[1729463427057,0.057785,69232.0,69223.0,0.057792]
[1729463427356,0.0421,69239.0,69221.0,0.3608]
[1729463427665,0.03539032,69238.0,69221.0,0.3608]
[1729463427862,0.0421,69239.0,69221.0,0.3608]
[1729463427863,0.057786,69231.0,69221.0,0.3608]
[1729463428163,0.0421,69239.0,69223.0,0.001]
[1729463428164,0.057789,69227.0,69223.0,0.001]
[1729463428355,0.057789,69227.0,69223.0,0.002]
[1729463428659,0.001,69232.0,69223.0,0.002]
[1729463428660,0.058785,69232.0,69223.0,0.002]
[1729463428862,0.058785,69232.0,69223.0,0.001]
[1729463428863,0.057785,69232.0,69223.0,0.001]
[1729463429061,0.001,69231.0,69223.0,0.001]
[1729463429257,0.03539168,69230.0,69223.0,0.001]
[1729463429464,0.001,69231.0,69223.0,0.001]
[1729463429760,0.057792,69224.0,69223.0,0.001]
[1729463429959,0.05779,69227.0,69221.0,0.002]
[1729463430261,0.057792,69224.0,69221.0,0.002]
[1729463430453,0.057792,69224.0,69221.0,0.001]
[1729463430653,0.007,69231.0,69223.0,0.001]
[1729463430852,0.05779,69226.0,69223.0,0.001]
[1729463431055,0.006,69231.0,69223.0,0.001]
[1729463431056,0.057792,69224.0,69223.0,0.001]
[1729463431363,0.057792,69224.0,69196.0,0.3608]
[1729463431364,0.59859555,69224.0,69196.0,0.3608]
[1729463431564,0.59859555,69224.0,69205.0,0.057807]
[1729463431565,0.057798,69217.0,69205.0,0.057807]
[1729463431754,0.03539555,69216.0,69205.0,0.057807]
[1729463432157,0.057795,69220.0,69213.0,0.3608]
[1729463432357,0.0412,69223.0,69213.0,0.3608]
[1729463432358,0.03539886,69219.0,69213.0,0.3608]
[1729463432563,0.03539886,69218.0,69213.0,0.418601]
[1729463432865,0.03539886,69217.0,69213.0,0.418601]
[1729463433072,0.098992,69223.0,69213.0,0.418601]
[1729463433360,0.03539564,69222.0,69213.0,0.3608]
[1729463433562,0.001,69224.0,69221.0,0.3608]
[1729463433961,0.0408,69235.0,69219.0,0.3608]
[1729463434161,0.057791,69226.0,69219.0,0.3608]
[1729463434757,0.057795,69220.0,69219.0,0.3608]
[1729463436966,0.057795,69220.0,69199.0,0.00216773]
[1729463436967,0.4334,69220.0,69199.0,0.00216773]
[1729463437163,0.057818,69192.0,69190.0,0.3608]
[1729463437358,0.057822,69188.0,69178.0,0.3608]
[1729463437565,0.3608,69194.0,69178.0,0.3608]
[1729463437761,0.057823,69186.0,69178.0,0.3608]
[1729463438666,0.057824,69185.0,69178.0,0.3618]
[1729463439062,0.057824,69185.0,69184.0,0.3608]
[1729463439266,0.3628,69194.0,69178.0,0.001]
[1729463439461,0.057825,69184.0,69178.0,0.3618]
[1729463439659,0.3608,69194.0,69178.0,0.3638]
[1729463440167,0.3608,69194.0,69186.0,0.3608]
[1729463440761,0.057816,69196.0,69186.0,0.3608]
[1729463441164,0.01,69194.0,69186.0,0.3608]
[1729463441568,0.057821,69189.0,69186.0,0.3608]
[1729463441868,0.005,69194.0,69186.0,0.3608]
[1729463442075,0.057818,69192.0,69186.0,0.3618]
[1729463442655,0.005,69194.0,69186.0,0.419623]
[1729463443164,0.007,69196.0,69193.0,0.3608]
[1729463443165,0.012,69196.0,69193.0,0.3608]
[1729463443662,0.012,69196.0,69187.0,0.057822]
[1729463443663,0.064815,69196.0,69187.0,0.057822]
[1729463443867,0.005,69194.0,69186.0,0.36372]
[1729463444062,0.005,69194.0,69186.0,0.3628]
[1729463444262,0.057819,69192.0,69186.0,0.3618]
[1729463444459,0.057823,69187.0,69186.0,0.3618]
[1729463444662,0.057823,69187.0,69186.0,0.001]
[1729463444860,0.001,69189.0,69178.0,0.3608]
[1729463445264,0.3608,69190.0,69178.0,0.3608]
[1729463445265,0.057827,69182.0,69178.0,0.3608]
[1729463445964,0.3608,69190.0,69174.0,0.00216849]
[1729463446156,0.057826,69184.0,69182.0,0.3608]
[1729463446467,0.057826,69184.0,69174.0,0.06000149]
[1729463447061,0.001,69189.0,69174.0,0.00216849]
[1729463447264,0.057833,69175.0,69174.0,0.00216849]
[1729463447465,0.3608,69177.0,69166.0,0.3608]
[1729463447466,0.057837,69170.0,69166.0,0.3608]
[1729463447666,0.0406,69174.0,69165.0,0.3608]
[1729463447976,0.057838,69169.0,69162.0,0.3608]
[1729463448166,0.057835,69173.0,69162.0,0.3608]
[1729463448362,0.057838,69169.0,69162.0,0.3608]
[1729463448570,0.057837,69170.0,69162.0,0.3608]
[1729463449160,0.0406,69174.0,69161.0,0.3608]
[1729463449368,0.0406,69174.0,69155.0,0.36164]
[1729463449668,0.057835,69173.0,69155.0,0.3608]
[1729463449864,0.0406,69174.0,69155.0,0.3608]
[1729463450060,0.057842,69164.0,69155.0,0.3608]
[1729463450261,0.0406,69174.0,69155.0,0.3608]
[1729463450262,0.057841,69165.0,69155.0,0.3608]
[1729463450460,0.3608,69171.0,69161.0,0.002]
[1729463450665,0.05784,69166.0,69161.0,0.002]
[1729463450868,0.001,69169.0,69162.0,0.007]
[1729463451071,0.057843,69163.0,69162.0,0.007]
[1729463451573,0.001,69169.0,69162.0,0.007]
[1729463451875,0.006,69171.0,69168.0,0.3608]
[1729463452267,0.3608,69195.0,69168.0,0.3608]
[1729463452268,0.0531,69190.0,69168.0,0.3608]
[1729463452568,0.6891,69200.0,69186.0,0.3608]
[1729463452569,0.00076,69200.0,69186.0,0.3608]
[1729463452770,0.3608,69208.0,69199.0,0.3608]
[1729463452997,0.057809,69203.0,69195.0,0.3608]
[1729463453773,0.3608,69208.0,69195.0,0.3608]
[1729463453973,0.057813,69199.0,69195.0,0.3608]
[1729463454175,0.007,69203.0,69195.0,0.3618]
[1729463454577,0.057815,69196.0,69195.0,0.001]
[1729463454773,0.05782,69191.0,69188.0,0.3608]
[1729463455082,0.05782,69191.0,69181.0,0.3608]
[1729463455083,0.057815,69196.0,69181.0,0.3608]
[1729463455272,0.05783,69178.0,69177.0,0.00216834]
[1729463455473,0.05783,69178.0,69168.0,0.3608]
[1729463455676,0.3608,69189.0,69168.0,0.3608]
[1729463455870,0.3608,69181.0,69161.0,0.3608]
[1729463456071,0.057829,69179.0,69161.0,0.3608]
[1729463456377,0.3608,69181.0,69161.0,0.3608]
[1729463456587,0.057836,69171.0,69161.0,0.3608]
[1729463456879,0.3608,69181.0,69161.0,0.3608]
[1729463457276,0.057829,69179.0,69161.0,0.3608]
[1729463457668,0.3608,69181.0,69161.0,0.3608]
[1729463457669,0.057836,69172.0,69161.0,0.3608]
[1729463457981,0.057837,69170.0,69161.0,0.3608]
[1729463458570,0.057829,69179.0,69161.0,0.3608]
[1729463458776,0.3608,69181.0,69161.0,0.3608]
[1729463459088,0.057839,69167.0,69161.0,0.3608]
[1729463459267,0.057839,69167.0,69161.0,0.3618]
[1729463459772,0.057835,69172.0,69161.0,0.3618]
[1729463459973,0.057836,69171.0,69161.0,0.3618]
[1729463460181,0.36896922,69181.0,69161.0,0.3618]
[1729463460381,0.057838,69169.0,69161.0,0.3628]
[1729463460679,0.057832,69176.0,69168.0,0.3608]
[1729463460875,0.00216922,69181.0,69175.0,0.3608]
[1729463462083,0.00216922,69181.0,69177.0,0.05783]
[1729463462282,0.00216922,69181.0,69176.0,0.3608]
[1729463462471,0.00216922,69181.0,69175.0,0.001]
[1729463462472,0.3608,69177.0,69175.0,0.001]
[1729463462672,0.057832,69176.0,69175.0,0.001]
[1729463462873,0.491512,69176.0,69175.0,0.001]
[1729463463178,0.491512,69176.0,69156.0,0.3608]
[1729463463378,0.057844,69162.0,69156.0,0.3608]
[1729463463882,0.057832,69176.0,69156.0,0.3608]
[1729463464077,0.057836,69171.0,69162.0,0.3608]
[1729463464383,0.057844,69161.0,69156.0,0.3608]
[1729463464686,0.006,69176.0,69156.0,0.3608]
[1729463464873,0.05784,69167.0,69156.0,0.3608]
[1729463465080,0.001,69162.0,69156.0,0.3608]
[1729463465375,0.057846,69159.0,69156.0,0.3608]
[1729463465582,0.057848,69157.0,69156.0,0.3608]
[1729463465775,0.057848,69157.0,69156.0,0.3618]
[1729463466179,0.057848,69157.0,69156.0,0.3628]
[1729463466574,0.418648,69157.0,69156.0,0.001]
[1729463466785,0.057855,69148.0,69124.0,0.04242034]
[1729463467083,0.3608,69157.0,69148.0,0.057855]
[1729463467391,0.3608,69157.0,69142.0,0.3608]
[1729463467392,0.36156,69165.0,69150.0,0.3608]
[1729463467587,0.057845,69161.0,69150.0,0.3608]
[1729463467782,0.001,69159.0,69150.0,0.3608]
[1729463468283,0.05785,69155.0,69143.0,0.1037]
[1729463468581,0.3608,69165.0,69150.0,0.001]
[1729463468582,0.3628,69165.0,69150.0,0.001]
[1729463468787,0.057846,69160.0,69154.0,0.3608]
[1729463469780,0.057846,69160.0,69147.0,0.3608]
[1729463469781,0.3608,69167.0,69148.0,0.001]
[1729463469981,0.3608,69153.0,69148.0,0.001]
[1729463470181,0.057858,69144.0,69143.0,0.002]
[1729463470890,0.057861,69141.0,69130.0,0.3608]
[1729463471186,0.17892,69150.0,69130.0,0.3608]
[1729463471483,0.057863,69140.0,69130.0,0.3608]
[1729463471783,0.002,69144.0,69136.0,0.3608]
[1729463471992,0.059859,69144.0,69136.0,0.3608]
[1729463472178,0.002,69144.0,69136.0,0.3608]
[1729463472381,0.003,69144.0,69143.0,0.014]
[1729463472879,0.003,69144.0,69136.0,0.3608]
[1729463472880,0.007,69144.0,69136.0,0.3608]
[1729463473280,0.007,69144.0,69142.0,0.3608]
[1729463473485,0.057842,69164.0,69142.0,0.3608]
[1729463473676,0.17892,69173.0,69154.0,0.3608]
[1729463473677,0.057845,69161.0,69154.0,0.3608]
[1729463473882,0.057849,69156.0,69154.0,0.3608]
[1729463474191,0.3608,69168.0,69154.0,0.3608]
[1729463474892,0.3608,69168.0,69155.0,0.3608]
[1729463475085,0.057842,69164.0,69155.0,0.3608]
[1729463475288,0.002,69156.0,69155.0,0.3608]
[1729463475989,0.00916999,69158.0,69155.0,0.3618]
[1729463476193,0.057848,69156.0,69155.0,0.001]
[1729463476498,0.057848,69156.0,69155.0,0.002]
[1729463476787,0.00916999,69158.0,69155.0,0.002]
[1729463476992,0.005,69156.0,69155.0,0.002]
[1729463477288,0.062848,69156.0,69155.0,0.002]
[1729463478684,0.057848,69156.0,69155.0,0.001]
[1729463478886,0.062848,69156.0,69155.0,0.002]
[1729463479085,0.005,69156.0,69155.0,0.002]
[1729463479284,0.23362,69175.0,69155.0,0.002]
[1729463479486,0.057838,69169.0,69163.0,0.3608]
[1729463479793,0.23438,69175.0,69163.0,0.3608]
[1729463479794,0.05546,69175.0,69163.0,0.3608]
[1729463480094,0.05546,69175.0,69155.0,0.002]
[1729463480095,0.3608,69172.0,69155.0,0.002]
[1729463480297,0.3608,69164.0,69155.0,0.002]
[1729463480483,0.057848,69156.0,69155.0,0.002]
[1729463480886,0.3608,69164.0,69155.0,0.001]
[1729463481086,0.057844,69161.0,69155.0,0.3628]
[1729463481493,0.057846,69160.0,69155.0,0.3628]
[1729463481688,0.057846,69160.0,69155.0,0.3618]
[1729463481889,0.3608,69164.0,69155.0,0.002]
[1729463482106,0.057846,69159.0,69155.0,0.001]
[1729463482291,0.18596,69168.0,69156.0,0.3608]
[1729463482484,0.057845,69161.0,69156.0,0.3608]
[1729463482692,0.057839,69167.0,69156.0,0.3608]
[1729463483395,0.18596,69168.0,69156.0,0.3608]
[1729463483595,0.18596,69168.0,69155.0,0.001]
[1729463483596,0.057839,69167.0,69155.0,0.001]
[1729463483795,0.057848,69156.0,69155.0,0.001]
[1729463484496,0.057864,69138.0,69133.0,0.00216972]
[1729463484697,0.05786,69143.0,69133.0,0.36296972]
[1729463485301,0.01921182,69152.0,69139.0,0.3608]
[1729463485302,0.00217026,69152.0,69139.0,0.3608]
[1729463485600,0.057853,69151.0,69145.0,0.3608]
[1729463485899,0.00217026,69152.0,69147.0,0.3608]
[1729463486204,0.00217026,69152.0,69148.0,0.057855]
[1729463486390,0.00317026,69152.0,69148.0,0.057855]
[1729463486893,0.00317026,69152.0,69147.0,0.3608]
[1729463486894,0.00317026,69152.0,69151.0,0.057853]
[1729463487096,0.057838,69169.0,69157.0,0.057847]
[1729463487403,0.057838,69169.0,69165.0,0.3608]
[1729463487591,0.05784,69167.0,69165.0,0.3608]
[1729463488188,0.05784,69166.0,69165.0,0.3608]
[1729463488391,0.057851,69153.0,69147.0,0.3608]
[1729463489198,0.057851,69153.0,69136.0,0.3608]
[1729463489199,0.057856,69147.0,69136.0,0.3608]
[1729463489395,0.115852,69152.0,69142.0,0.3608]
[1729463489795,0.057853,69151.0,69142.0,0.3608]
[1729463489994,0.057853,69151.0,69147.0,0.001]
[1729463490395,0.002,69153.0,69152.0,0.057852]
[1729463490999,0.002,69153.0,69152.0,0.418652]
[1729463491601,0.057842,69164.0,69152.0,0.418652]
[1729463491797,0.057842,69164.0,69158.0,0.3608]
[1729463491798,0.03542544,69163.0,69158.0,0.3608]
[1729463491998,0.057842,69164.0,69158.0,0.3608]
[1729463492196,0.03542592,69163.0,69158.0,0.3608]
[1729463492391,0.01693632,69170.0,69158.0,0.3608]
[1729463492592,0.1783,69194.0,69168.0,0.3608]
[1729463492804,0.0613,69194.0,69180.0,0.3608]
[1729463493008,0.05782,69190.0,69180.0,0.3608]
[1729463493508,0.057828,69180.0,69174.0,0.3608]
[1729463494996,0.0594,69193.0,69174.0,0.3608]
[1729463495299,0.0594,69193.0,69162.0,0.00216882]
[1729463495300,0.057833,69175.0,69167.0,0.3608]
[1729463495502,0.04439147,69174.0,69167.0,0.3608]
[1729463495896,0.3608,69180.0,69167.0,0.3608]
[1729463496101,0.09627336,69179.0,69162.0,0.00216882]
[1729463496302,0.04439489,69178.0,69174.0,0.001]
[1729463496506,0.04439489,69177.0,69174.0,0.001]
[1729463496712,0.05187847,69179.0,69174.0,0.001]
[1729463496713,0.057833,69175.0,69174.0,0.001]
[1729463496906,0.10222789,69175.0,69174.0,0.001]
[1729463497099,0.057843,69163.0,69162.0,0.00216882]
[1729463497299,0.057851,69153.0,69143.0,0.0629]
[1729463497903,0.3608,69164.0,69143.0,0.0629]
[1729463498110,0.057851,69154.0,69143.0,0.0629]
[1729463498502,0.3608,69164.0,69142.0,0.3608]
[1729463498503,0.057844,69162.0,69142.0,0.3608]
[1729463498703,0.057846,69160.0,69143.0,0.006]
[1729463499004,0.04440857,69159.0,69143.0,0.01]
[1729463499207,0.057854,69149.0,69143.0,0.01]
[1729463499411,0.057854,69149.0,69143.0,0.005]
[1729463499610,0.057856,69147.0,69143.0,0.005]
[1729463499803,0.057855,69148.0,69143.0,0.005]
[1729463500013,0.057858,69144.0,69143.0,0.005]
[1729463500610,0.09329399,69144.0,69143.0,0.005]
[1729463501013,0.09329399,69144.0,69143.0,0.013]
[1729463501313,0.09329399,69144.0,69143.0,0.008]
[1729463501810,0.11528946,69144.0,69141.0,0.3608]
[1729463502011,0.11528946,69144.0,69128.0,0.3608]
[1729463502012,0.002,69144.0,69128.0,0.3608]
[1729463502202,0.002,69144.0,69123.0,0.3608]
[1729463502203,0.3608,69135.0,69123.0,0.3608]
[1729463502806,0.3608,69135.0,69117.0,0.06255583]
[1729463502807,0.3608,69129.0,69117.0,0.06255583]
[1729463503013,0.057876,69123.0,69117.0,0.06255583]
[1729463503209,0.3608,69129.0,69117.0,0.06255583]
[1729463503414,0.3608,69129.0,69124.0,0.3608]
[1729463503610,0.19424,69134.0,69117.0,0.42335583]
[1729463503813,0.057874,69125.0,69117.0,0.06255583]
[1729463504201,0.3608,69130.0,69117.0,0.06255583]
[1729463504405,0.057877,69123.0,69117.0,0.06255583]
[1729463504609,0.05788,69118.0,69117.0,0.06255583]
[1729463505112,0.05788,69118.0,69117.0,0.09055583]
[1729463505533,0.11668,69118.0,69117.0,0.09055583]
[1729463505707,0.11668,69118.0,69117.0,0.07655583]
[1729463505911,0.12368,69118.0,69117.0,0.07755583]
[1729463506111,0.55772,69118.0,69117.0,0.07755583]
[1729463506820,0.75196,69118.0,69117.0,0.07755583]
[1729463507117,0.75196,69118.0,69117.0,0.06355583]
[1729463507418,0.75296,69118.0,69117.0,0.06355583]
[1729463507920,0.057882,69116.0,69095.0,0.3608]
[1729463508113,0.3608,69104.0,69095.0,0.3608]
[1729463508419,0.057891,69105.0,69095.0,0.3608]
[1729463508815,0.057893,69103.0,69095.0,0.3608]
[1729463509010,0.3608,69110.0,69092.0,0.0602]
[1729463509206,0.003,69104.0,69092.0,0.0602]
[1729463509412,0.057894,69102.0,69092.0,0.0602]
[1729463509729,0.057893,69103.0,69086.0,0.3633939]
[1729463510017,0.057897,69098.0,69086.0,0.3625539]
[1729463510216,0.3638,69104.0,69086.0,0.3608]
[1729463510419,0.0579,69095.0,69086.0,0.3608]
[1729463510822,0.3608,69098.0,69086.0,0.3608]